fUST/lending_fUST_20250705
["ID","MTS","AMOUNT","RATE_DAILY","PERIOD"]
[369764849,1751721065307,-250.806694,0.00020821,2]
[369764850,1751721065316,-460.0,0.00020821,2]
[369764851,1751721065326,-460.0,0.00020821,2]
[369764852,1751721065336,-547.92302136,0.00020821,2]
[369764853,1751721065346,-460.0,0.00020821,2]
[369764854,1751721065356,-460.0,0.00020821,2]
[369764855,1751721065366,-679.18,0.00020821,2]
[369764856,1751721065381,-1069.14,0.00020821,2]
[369764857,1751721065391,-662.99,0.00020821,2]
[369764858,1751721065401,-4189.72,0.00020821,2]
[369764859,1751721065411,-460.0,0.00020821,2]
[369764860,1751721065420,-1029.23,0.00020821,2]
[369764861,1751721065429,-460.0,0.00020821,2]
[369764862,1751721065439,-460.0,0.00020821,2]
[369764863,1751721065460,-460.0,0.00020821,2]
[369764864,1751721065477,-460.0,0.00020821,2]
[369764865,1751721065495,-460.0,0.00020821,2]
[369764866,1751721065514,-460.0,0.00020821,2]
[369764867,1751721065532,-2585.72,0.00020821,2]
[369764868,1751721065548,-1163.78,0.00020821,2]
[369764869,1751721065567,-3838.69,0.00020821,2]
[369764870,1751721065580,-498.69,0.00020821,2]
[369764871,1751721065595,-460.0,0.00020821,2]
[369764872,1751721065614,-460.0,0.00020821,2]
[369764873,1751721065634,-3395.42,0.00020821,2]
[369764874,1751721065646,-709.77,0.00020821,2]
[369764875,1751721065666,-460.0,0.00020821,2]
[369764876,1751721065683,-460.0,0.00020821,2]
[369764877,1751721065698,-560.08,0.00020821,2]
[369764878,1751721065712,-460.0,0.00020821,2]
[369764879,1751721065728,-460.0,0.00020821,2]
[369764880,1751721065743,-460.0,0.00020821,2]
[369764881,1751721065758,-2248.5,0.00020821,2]
[369764882,1751721065773,-460.0,0.00020821,2]
[369764883,1751721065788,-525.81,0.00020821,2]
[369764884,1751721065803,-2372.17,0.00020821,2]
[369764885,1751721065820,-644.72,0.00020821,2]
[369764886,1751721065835,-900.96,0.00020821,2]
[369764887,1751721065851,-11199.79,0.00020821,2]
[369764888,1751721065867,-1584.75,0.00020821,2]
[369764889,1751721065881,-697.04,0.00020821,2]
[369764890,1751721065898,-460.0,0.00020821,2]
[369764891,1751721065914,-460.0,0.00020821,2]
[369764892,1751721065929,-660.4,0.00020821,2]
[369764893,1751721065944,-10263.15,0.00020821,2]
[369764894,1751721065960,-637.37,0.00020821,2]
[369764895,1751721065975,-1732.45,0.00020821,2]
[369764896,1751721065989,-559.58,0.00020821,2]
[369764897,1751721066004,-460.0,0.00020821,2]
[369764898,1751721066019,-1304.19,0.00020821,2]
[369764899,1751721066034,-187.577716,0.00020821,2]
[369764900,1751721066050,-460.0,0.00020821,2]
[369764901,1751721066064,-973.5,0.00020821,2]
[369764902,1751721066078,-460.0,0.00020821,2]
[369764903,1751721066093,-4814.61,0.00020821,2]
[369764904,1751721066108,-187.577716,0.00020821,2]
[369764905,1751721066125,-460.0,0.00020821,2]
[369764906,1751721066139,-1599.55,0.00020821,2]
[369764907,1751721066154,-460.0,0.00020821,2]
[369764908,1751721066169,-514.12,0.00020821,2]
[369764909,1751721066183,-973.56,0.00020821,2]
[369764910,1751721066198,-485.31,0.00020821,2]
[369764911,1751721066213,-572.31,0.00020821,2]
[369764912,1751721066227,-2742.75,0.00020821,2]
[369764913,1751721066242,-3855.89,0.00020821,2]
[369764914,1751721066257,-802.19,0.00020821,2]
[369764915,1751721066274,-1728.61,0.00020821,2]
[369764916,1751721066291,-8078.38,0.00020821,2]
[369764917,1751721066307,-460.0,0.00020821,2]
[369764918,1751721066323,-627.96,0.00020821,2]
[369764919,1751721066337,-701.36,0.00020821,2]
[369764920,1751721066352,-460.0,0.00020821,2]
[369764921,1751721066367,-508.33,0.00020821,2]
[369764922,1751721066382,-460.0,0.00020821,2]
[369764923,1751721066398,-460.0,0.00020821,2]
[369764924,1751721066414,-460.0,0.00020821,2]
[369764925,1751721066429,-460.0,0.00020821,2]
[369764926,1751721066445,-460.0,0.00020821,2]
[369764927,1751721066461,-184.383129,0.00020821,2]
[369764928,1751721066477,-460.0,0.00020821,2]
[369764929,1751721066621,-1283.87,0.00020821,2]
[369764930,1751721066637,-460.0,0.00020821,2]
[369764931,1751721066648,-893.91,0.00020821,2]
[369764932,1751721066657,-151.0,0.00020821,2]
[369764933,1751721066667,-460.0,0.00020821,2]
[369764934,1751721066676,-460.0,0.00020821,2]
[369764935,1751721066687,-460.0,0.00020821,2]
[369764936,1751721066697,-641.57,0.00020821,2]
[369764937,1751721066707,-460.0,0.00020821,2]
[369764938,1751721066716,-523.55,0.00020821,2]
[369764939,1751721066726,-477.68,0.00020821,2]
[369764940,1751721066735,-2923.74,0.00020821,2]
[369764941,1751721066745,-460.0,0.00020821,2]
[369764942,1751721066755,-504.5,0.00020821,2]
[369764943,1751721066764,-970.52,0.00020821,2]
[369764944,1751721066774,-460.0,0.00020821,2]
[369764945,1751721066786,-204.99303721,0.00020862,4]
[369764946,1751721066797,-1500.0,0.00020868,2]
[369764947,1751721066807,-500.0,0.00020868,2]
[369764948,1751721066818,-1500.0,0.00020868,2]
[369764949,1751721066829,-1501.10461529,0.00020868,2]
[369764950,1751721066840,-1500.0,0.00020868,2]
[369764951,1751721066850,-1500.0,0.00020868,2]
[369764952,1751721066859,-1500.0,0.00020868,2]
[369764953,1751721066869,-1256.63468439,0.00020868,2]
[369764954,1751721066879,-581.53029727,0.00020868,2]
[369764955,1751721066889,-1503.6838017,0.00020868,2]
[369764956,1751721066899,-1473.61519427,0.00020868,2]
[369764957,1751721066909,-1500.0,0.00020868,2]
[369764958,1751721066919,-1119.38126361,0.00020868,2]
[369764959,1751721066931,-609.08371321,0.00020868,2]
[369764960,1751721066942,-1500.0,0.00020868,2]
[369764961,1751721066952,-1595.04113703,0.00020868,2]
[369764962,1751721066962,-1500.0,0.00020868,2]
[369764963,1751721066973,-1071.23675183,0.00020868,2]
[369764964,1751721066984,-1500.0,0.00020868,2]
[369764965,1751721066994,-1500.0,0.00020868,2]
[369764966,1751721067005,-1500.0,0.00020868,2]
[369764967,1751721067016,-1500.0,0.00020868,2]
[369764968,1751721067025,-160.534433,0.00020873,2]
[369764969,1751721067035,-168.406886,0.00020889,2]
[369764970,1751721067045,-168.0,0.00020891,2]
[369764971,1751721067055,-193.492751,0.00020895,2]
[369764972,1751721067065,-6479.17777182,0.0002092,2]
[369764973,1751721067074,-168.0,0.00020922,2]
[369764974,1751721067084,-166.49643125,0.00020932,2]
[369764975,1751721067093,-745.1017875,0.00020939,2]
[369764976,1751721067103,-166.49643125,0.00020986,2]
[369764977,1751721067114,-193.492751,0.00020987,2]
[369764978,1751721067124,-1000.0,0.0002099,2]
[369764979,1751721067133,-500.0,0.00020993,2]
[369764980,1751721067143,-500.0,0.00020993,2]
[369764981,1751721067153,-500.0,0.00020993,2]
[369764982,1751721067162,-500.0,0.00020993,2]
[369764983,1751721067171,-500.0,0.00020993,2]
[369764984,1751721067181,-346.88674891,0.00020993,2]
[369764985,1751721067190,-274.4,0.00021,2]
[369764986,1751721067200,-3000.0,0.00021,2]
[369764987,1751721067209,-297.0,0.00021001,4]
[369764988,1751721067218,-3000.0,0.0002101,2]
[369764989,1751721067228,-3000.0,0.0002102,2]
[369764990,1751721067237,-3000.0,0.0002103,2]
[369764991,1751721067247,-151.0,0.0002103,2]
[369764992,1751721067256,-310.0,0.00021034,2]
[369764993,1751721067265,-3000.0,0.0002104,2]
[369764994,1751721067275,-206.0,0.0002104,2]
[369764995,1751721067284,-3000.0,0.0002105,2]
[369764996,1751721067293,-179.578221,0.0002105,2]
[369764997,1751721067302,-179.578221,0.0002105,2]
[369764998,1751721067311,-204.99303721,0.00021054,4]
[369764999,1751721067321,-3000.0,0.0002106,2]
[369765000,1751721067330,-310.0,0.00021068,2]
[369765001,1751721067339,-3000.0,0.0002107,2]
[369765002,1751721067348,-531.619445,0.0002107,2]
[369765003,1751721067359,-531.619445,0.0002107,2]
[369765004,1751721067369,-193.461392,0.0002107,2]
[369765005,1751721067379,-193.461392,0.0002107,2]
[369765006,1751721067388,-151.0,0.00021071,2]
[369765007,1751721067399,-3000.0,0.0002108,2]
[369765008,1751721067408,-193.492751,0.0002108,2]
[369765009,1751721067418,-3000.0,0.0002109,2]
[369765010,1751721067428,-151.0,0.00021095,2]
[369765011,1751721067438,-460.0,0.00021095,2]
[369765012,1751721067448,-460.0,0.00021095,2]
[369765013,1751721067457,-460.0,0.00021095,2]
[369765014,1751721067467,-460.0,0.00021095,2]
[369765015,1751721067476,-460.0,0.00021095,2]
[369765016,1751721067486,-460.0,0.00021095,2]
[369765017,1751721067498,-151.0,0.00021095,2]
[369765018,1751721067508,-151.0,0.00021095,2]
[369765019,1751721067517,-151.0,0.00021095,2]
[369765020,1751721067527,-460.0,0.00021095,2]
[369765021,1751721067537,-460.0,0.00021095,2]
[369765022,1751721067547,-460.0,0.00021095,2]
[369765023,1751721067556,-460.0,0.00021095,2]
[369765024,1751721067566,-460.0,0.00021095,2]
[369765025,1751721067577,-460.0,0.00021095,2]
[369765026,1751721067587,-460.0,0.00021095,2]
[369765027,1751721067596,-460.0,0.00021095,2]
[369765028,1751721067605,-151.0,0.00021095,2]
[369765029,1751721067614,-237.75822802,0.00021095,2]
[369765030,1751721067624,-460.0,0.00021095,2]
[369765031,1751721067632,-460.0,0.00021095,2]
[369765032,1751721067642,-460.0,0.00021095,2]
[369765033,1751721067652,-460.0,0.00021095,2]
[369765034,1751721067661,-460.0,0.00021095,2]
[369765035,1751721067671,-460.0,0.00021095,2]
[369765036,1751721067681,-151.0,0.00021095,2]
[369765037,1751721067690,-460.0,0.00021095,2]
[369765038,1751721067699,-460.0,0.00021095,2]
[369765039,1751721067708,-460.0,0.00021095,2]
[369765040,1751721067717,-151.0,0.00021095,2]
[369765041,1751721067726,-460.0,0.00021095,2]
[369765042,1751721067736,-460.0,0.00021095,2]
[369765043,1751721067744,-460.0,0.00021095,2]
[369765044,1751721067754,-460.0,0.00021095,2]
[369765045,1751721067763,-545.68,0.00021095,2]
[369765046,1751721067774,-522.94,0.00021095,2]
[369765047,1751721067784,-642.269192,0.00021095,2]
[369765048,1751721067793,-460.0,0.00021095,2]
[369765049,1751721067802,-460.0,0.00021095,2]
[369765050,1751721067812,-1210.27,0.00021095,2]
[369765051,1751721067822,-460.0,0.00021095,2]
[369765052,1751721067831,-687.52,0.00021095,2]
[369765053,1751721067840,-460.0,0.00021095,2]
[369765054,1751721067851,-460.0,0.00021095,2]
[369765055,1751721067860,-460.0,0.00021095,2]
[369765056,1751721067869,-460.0,0.00021095,2]
[369765057,1751721067879,-460.0,0.00021095,2]
[369765058,1751721067888,-261.550832,0.00021095,2]
[369765059,1751721067899,-460.0,0.00021095,2]
[369765060,1751721067909,-460.0,0.00021095,2]
[369765061,1751721067919,-460.0,0.00021095,2]
[369765062,1751721067928,-460.0,0.00021095,2]
[369765063,1751721067939,-460.0,0.00021095,2]
[369765064,1751721067948,-460.0,0.00021095,2]
[369765065,1751721067958,-460.0,0.00021095,2]
[369765066,1751721067967,-460.0,0.00021095,2]
[369765067,1751721067978,-460.0,0.00021095,2]
[369765068,1751721067987,-460.0,0.00021095,2]
[369765069,1751721067996,-460.0,0.00021095,2]
[369765070,1751721068006,-460.0,0.00021095,2]
[369765071,1751721068015,-963.22,0.00021095,2]
[369765072,1751721068025,-460.0,0.00021095,2]
[369765073,1751721068034,-460.0,0.00021095,2]
[369765074,1751721068044,-460.0,0.00021095,2]
[369765075,1751721068053,-460.0,0.00021095,2]
[369765076,1751721068063,-460.0,0.00021095,2]
[369765077,1751721068073,-460.0,0.00021095,2]
[369765078,1751721068082,-460.0,0.00021095,2]
[369765079,1751721068189,-622.77,0.00021095,2]
[369765080,1751721068199,-460.0,0.00021095,2]
[369765081,1751721068209,-460.0,0.00021095,2]
[369765082,1751721068219,-460.0,0.00021095,2]
[369765083,1751721068229,-552.6,0.00021095,2]
[369765084,1751721068238,-151.0,0.00021095,2]
[369765085,1751721068248,-460.0,0.00021095,2]
[369765086,1751721068258,-460.0,0.00021095,2]
[369765087,1751721068267,-538.94,0.00021095,2]
[369765088,1751721068277,-151.0,0.00021095,2]
[369765089,1751721068286,-460.0,0.00021095,2]
[369765090,1751721068297,-151.0,0.00021095,2]
[369765091,1751721068306,-460.0,0.00021095,2]
[369765092,1751721068316,-460.0,0.00021095,2]
[369765093,1751721068326,-925.19,0.00021095,2]
[369765094,1751721068335,-548.35,0.00021095,2]
[369765095,1751721068346,-460.0,0.00021095,2]
[369765096,1751721068356,-460.0,0.00021095,2]
[369765097,1751721068366,-460.0,0.00021095,2]
[369765098,1751721068375,-460.0,0.00021095,2]
[369765099,1751721068385,-460.0,0.00021095,2]
[369765100,1751721068396,-460.0,0.00021095,2]
[369765101,1751721068406,-460.0,0.00021095,2]
[369765102,1751721068415,-460.0,0.00021095,2]
[369765103,1751721068425,-710.67,0.00021095,2]
[369765104,1751721068434,-460.0,0.00021095,2]
[369765105,1751721068444,-460.0,0.00021095,2]
[369765106,1751721068455,-460.0,0.00021095,2]
[369765107,1751721068465,-556.92,0.00021095,2]
[369765108,1751721068475,-460.0,0.00021095,2]
[369765109,1751721068485,-460.0,0.00021095,2]
[369765110,1751721068495,-460.0,0.00021095,2]
[369765111,1751721068504,-460.0,0.00021095,2]
[369765112,1751721068515,-460.0,0.00021095,2]
[369765113,1751721068525,-151.0,0.00021095,2]
[369765114,1751721068535,-460.0,0.00021095,2]
[369765115,1751721068545,-460.0,0.00021095,2]
[369765116,1751721068554,-476.09,0.00021095,2]
[369765117,1751721068565,-460.0,0.00021095,2]
[369765118,1751721068575,-460.0,0.00021095,2]
[369765119,1751721068585,-591.66,0.00021095,2]
[369765120,1751721068595,-460.0,0.00021095,2]
[369765121,1751721068604,-460.0,0.00021095,2]
[369765122,1751721068614,-460.0,0.00021095,2]
[369765123,1751721068623,-1596.43,0.00021095,2]
[369765124,1751721068633,-460.0,0.00021095,2]
[369765125,1751721068643,-517.64,0.00021095,2]
[369765126,1751721068652,-460.0,0.00021095,2]
[369765127,1751721068661,-1080.05,0.00021095,2]
[369765128,1751721068670,-460.0,0.00021095,2]
[369765129,1751721068680,-460.0,0.00021095,2]
[369765130,1751721068689,-503.61,0.00021095,2]
[369765131,1751721068698,-460.0,0.00021095,2]
[369765132,1751721068707,-460.0,0.00021095,2]
[369765133,1751721068717,-151.0,0.00021095,2]
[369765134,1751721068727,-460.0,0.00021095,2]
[369765135,1751721068737,-351.34419932,0.00021095,2]
[369765136,1751721068746,-277.2565,0.00021095,2]
[369765137,1751721068755,-726.57,0.00021095,2]
[369765138,1751721068764,-460.0,0.00021095,2]
[369765139,1751721068774,-460.0,0.00021095,2]
[369765140,1751721068783,-460.0,0.00021095,2]
[369765141,1751721068792,-460.0,0.00021095,2]
[369765142,1751721068802,-460.0,0.00021095,2]
[369765143,1751721068811,-460.0,0.00021095,2]
[369765144,1751721068821,-460.0,0.00021095,2]
[369765145,1751721068830,-1216.59,0.00021095,2]
[369765146,1751721068839,-151.0,0.00021095,2]
[369765147,1751721068849,-471.33,0.00021095,2]
[369765148,1751721068858,-151.0,0.00021095,2]
[369765149,1751721068867,-460.0,0.00021095,2]
[369765150,1751721068877,-460.0,0.00021095,2]
[369765151,1751721068885,-644.53,0.00021095,2]
[369765152,1751721068897,-159.37346411,0.00021095,2]
[369765153,1751721068907,-460.0,0.00021095,2]
[369765154,1751721068916,-460.0,0.00021095,2]
[369765155,1751721068926,-460.0,0.00021095,2]
[369765156,1751721068936,-460.0,0.00021095,2]
[369765157,1751721068946,-1557.5,0.00021095,2]
[369765158,1751721068956,-460.0,0.00021095,2]
[369765159,1751721068966,-589.6839843,0.00021095,2]
[369765160,1751721068976,-460.0,0.00021095,2]
[369765161,1751721068985,-460.0,0.00021095,2]
[369765162,1751721068994,-6156.78,0.00021095,2]
[369765163,1751721069004,-460.0,0.00021095,2]
[369765164,1751721069013,-555.5,0.00021095,2]
[369765165,1751721069022,-1370.86,0.00021095,2]
[369765166,1751721069032,-500.48,0.00021095,2]
[369765167,1751721069041,-460.0,0.00021095,2]
[369765168,1751721069051,-460.0,0.00021095,2]
[369765169,1751721069060,-4601.49,0.00021095,2]
[369765170,1751721069069,-1347.08,0.00021095,2]
[369765171,1751721069079,-466.74,0.00021095,2]
[369765172,1751721069088,-460.0,0.00021095,2]
[369765173,1751721069097,-1597.36,0.00021095,2]
[369765174,1751721069107,-1464.28,0.00021095,2]
[369765175,1751721069116,-460.0,0.00021095,2]
[369765176,1751721069125,-460.0,0.00021095,2]
[369765177,1751721069135,-460.0,0.00021095,2]
[369765178,1751721069146,-4875.51,0.00021095,2]
[369765179,1751721069155,-2467.61,0.00021095,2]
[369765180,1751721069165,-553.63,0.00021095,2]
[369765181,1751721069175,-460.0,0.00021095,2]
[369765182,1751721069184,-460.0,0.00021095,2]
[369765183,1751721069194,-460.0,0.00021095,2]
[369765184,1751721069203,-460.0,0.00021095,2]
[369765185,1751721069212,-460.0,0.00021095,2]
[369765186,1751721069222,-460.0,0.00021095,2]
[369765187,1751721069231,-4457.69,0.00021095,2]
[369765188,1751721069241,-460.0,0.00021095,2]
[369765189,1751721069251,-462.46974177,0.00021095,2]
[369765190,1751721069260,-959.85,0.00021095,2]
[369765191,1751721069270,-460.0,0.00021095,2]
[369765192,1751721069279,-460.0,0.00021095,2]
[369765193,1751721069288,-460.0,0.00021095,2]
[369765194,1751721069298,-479.5,0.00021095,2]
[369765195,1751721069307,-5048.11,0.00021095,2]
[369765196,1751721069316,-460.0,0.00021095,2]
[369765197,1751721069326,-2254.67,0.00021095,2]
[369765198,1751721069335,-364.49966,0.00021095,2]
[369765199,1751721069344,-7943.53,0.00021095,2]
[369765200,1751721069354,-460.0,0.00021095,2]
[369765201,1751721069363,-460.0,0.00021095,2]
[369765202,1751721069373,-364.49966,0.00021095,2]
[369765203,1751721069383,-460.0,0.00021095,2]
[369765204,1751721069392,-460.0,0.00021095,2]
[369765205,1751721069403,-460.0,0.00021095,2]
[369765206,1751721069412,-460.0,0.00021095,2]
[369765207,1751721069422,-460.0,0.00021095,2]
[369765208,1751721069431,-679.18,0.00021095,2]
[369765209,1751721069441,-1069.14,0.00021095,2]
[369765210,1751721069450,-662.99,0.00021095,2]
[369765211,1751721069460,-4189.72,0.00021095,2]
[369765212,1751721069469,-460.0,0.00021095,2]
[369765213,1751721069478,-1029.23,0.00021095,2]
[369765214,1751721069488,-460.0,0.00021095,2]
[369765215,1751721069497,-460.0,0.00021095,2]
[369765216,1751721069507,-460.0,0.00021095,2]
[369765217,1751721069516,-460.0,0.00021095,2]
[369765218,1751721069525,-460.0,0.00021095,2]
[369765219,1751721069535,-460.0,0.00021095,2]
[369765220,1751721069545,-2585.72,0.00021095,2]
[369765221,1751721069555,-1163.78,0.00021095,2]
[369765222,1751721069565,-3838.69,0.00021095,2]
[369765223,1751721069575,-498.69,0.00021095,2]
[369765224,1751721069584,-460.0,0.00021095,2]
[369765225,1751721069594,-460.0,0.00021095,2]
[369765226,1751721069604,-3395.42,0.00021095,2]
[369765227,1751721069613,-709.77,0.00021095,2]
[369765228,1751721069623,-460.0,0.00021095,2]
[369765229,1751721069634,-460.0,0.00021095,2]
[369765230,1751721069645,-560.08,0.00021095,2]
[369765231,1751721069654,-460.0,0.00021095,2]
[369765232,1751721069665,-460.0,0.00021095,2]
[369765233,1751721069675,-460.0,0.00021095,2]
[369765234,1751721069685,-2248.5,0.00021095,2]
[369765235,1751721069694,-460.0,0.00021095,2]
[369765236,1751721069703,-525.81,0.00021095,2]
[369765237,1751721069715,-2372.17,0.00021095,2]
[369765238,1751721069725,-644.72,0.00021095,2]
[369765239,1751721069734,-900.96,0.00021095,2]
[369765240,1751721069746,-11199.79,0.00021095,2]
[369765241,1751721069756,-697.04,0.00021095,2]
[369765242,1751721069766,-460.0,0.00021095,2]
[369765243,1751721069783,-1584.75,0.00021095,2]
[369765244,1751721069793,-460.0,0.00021095,2]
[369765245,1751721069803,-660.4,0.00021095,2]
[369765246,1751721069813,-10263.15,0.00021095,2]
[369765247,1751721069823,-637.37,0.00021095,2]
[369765248,1751721069833,-1732.45,0.00021095,2]
[369765249,1751721069844,-559.58,0.00021095,2]
[369765250,1751721069857,-460.0,0.00021095,2]
[369765251,1751721069867,-1304.19,0.00021095,2]
[369765252,1751721069878,-187.577716,0.00021095,2]
[369765253,1751721069889,-460.0,0.00021095,2]
[369765254,1751721069899,-973.5,0.00021095,2]
[369765255,1751721069908,-460.0,0.00021095,2]
[369765256,1751721069918,-4814.61,0.00021095,2]
[369765257,1751721069928,-187.577716,0.00021095,2]
[369765258,1751721069939,-460.0,0.00021095,2]
[369765259,1751721069949,-1599.55,0.00021095,2]
[369765260,1751721069959,-460.0,0.00021095,2]
[369765261,1751721069970,-514.12,0.00021095,2]
[369765262,1751721069983,-973.56,0.00021095,2]
[369765263,1751721069993,-485.31,0.00021095,2]
[369765264,1751721070002,-572.31,0.00021095,2]
[369765265,1751721070012,-2742.75,0.00021095,2]
[369765266,1751721070024,-3855.89,0.00021095,2]
[369765267,1751721070036,-802.19,0.00021095,2]
[369765268,1751721070046,-1728.61,0.00021095,2]
[369765269,1751721070056,-8078.38,0.00021095,2]
[369765270,1751721070066,-460.0,0.00021095,2]
[369765271,1751721070075,-627.96,0.00021095,2]
[369765272,1751721070085,-701.36,0.00021095,2]
[369765273,1751721070094,-460.0,0.00021095,2]
[369765274,1751721070103,-508.33,0.00021095,2]
[369765275,1751721070115,-460.0,0.00021095,2]
[369765276,1751721070125,-460.0,0.00021095,2]
[369765277,1751721070134,-460.0,0.00021095,2]
[369765278,1751721070145,-460.0,0.00021095,2]
[369765279,1751721070155,-460.0,0.00021095,2]
[369765280,1751721070165,-1283.87,0.00021095,2]
[369765281,1751721070175,-460.0,0.00021095,2]
[369765282,1751721070184,-893.91,0.00021095,2]
[369765283,1751721070195,-151.0,0.00021095,2]
[369765284,1751721070206,-487.31328264,0.00021095,2]
[369765285,1751721070216,-460.0,0.00021095,2]
[369765286,1751721070225,-460.0,0.00021095,2]
[369765287,1751721070235,-641.57,0.00021095,2]
[369765288,1751721070246,-460.0,0.00021095,2]
[369765289,1751721070255,-523.55,0.00021095,2]
[369765290,1751721070265,-477.68,0.00021095,2]
[369765291,1751721070275,-2923.74,0.00021095,2]
[369765292,1751721070286,-460.0,0.00021095,2]
[369765293,1751721070297,-504.5,0.00021095,2]
[369765294,1751721070306,-970.52,0.00021095,2]
[369765295,1751721070315,-460.0,0.00021095,2]
[369765296,1751721070325,-3000.0,0.000211,2]
[369765297,1751721070334,-570.07,0.000211,2]
[369765298,1751721070344,-3964.734372,0.0002111,2]
[369765299,1751721070353,-200.0,0.0002111,2]
[369765300,1751721070362,-1223.04511334,0.00021116,2]
[369765301,1751721070372,-1748.0,0.0002112,2]
[369765302,1751721070381,-166.49643125,0.00021151,2]
[369765303,1751721070391,-151.0,0.0002116,2]
[369765304,1751721070401,-310.0,0.00021163,2]
[369765305,1751721070411,-193.492751,0.00021173,2]
[369765306,1751721070420,-310.0,0.00021198,2]
[369765307,1751721070431,-310.0,0.00021205,2]
[369765308,1751721070441,-215.0738,0.00021215,2]
[369765309,1751721070450,-297.0,0.00021215,5]
[369765310,1751721070459,-4552.0,0.00021235,2]
[369765311,1751721070469,-204.99303721,0.00021246,4]
[369765312,1751721070479,-166.49643125,0.0002126,2]
[369765313,1751721070488,-169.99279489,0.0002126,2]
[369765314,1751721070498,-169.99279489,0.0002126,2]
[369765315,1751721070508,-193.492751,0.00021265,2]
[369765316,1751721070517,-310.0,0.00021277,2]
[369765317,1751721070527,-206.0,0.0002128,2]
[369765318,1751721070541,-168.406886,0.00021324,2]
[369765319,1751721070551,-193.492751,0.00021358,2]
[369765320,1751721070560,-2500.0,0.00021364,2]
[369765321,1751721070571,-500.0,0.00021364,2]
[369765322,1751721070581,-2500.0,0.00021364,2]
[369765323,1751721070590,-500.0,0.00021368,10]
[369765324,1751721070600,-500.0,0.00021368,10]
[369765325,1751721070610,-453.76,0.00021369,2]
[369765326,1751721070619,-460.0,0.00021369,2]
[369765327,1751721070629,-460.0,0.00021369,2]
[369765328,1751721070638,-460.0,0.00021369,2]
[369765329,1751721070649,-460.0,0.00021369,2]
[369765330,1751721070659,-460.0,0.00021369,2]
[369765331,1751721070668,-151.0,0.00021369,2]
[369765332,1751721070677,-460.0,0.00021369,2]
[369765333,1751721070687,-151.0,0.00021369,2]
[369765334,1751721070696,-460.0,0.00021369,2]
[369765335,1751721070706,-460.0,0.00021369,2]
[369765336,1751721070715,-460.0,0.00021369,2]
[369765337,1751721070725,-151.0,0.00021369,2]
[369765338,1751721070734,-151.0,0.00021369,2]
[369765339,1751721070743,-151.0,0.00021369,2]
[369765340,1751721070752,-237.80606646,0.00021369,2]
[369765341,1751721070762,-460.0,0.00021369,2]
[369765342,1751721070771,-460.0,0.00021369,2]
[369765343,1751721070780,-151.0,0.00021369,2]
[369765344,1751721070790,-151.0,0.00021369,2]
[369765345,1751721070799,-151.0,0.00021369,2]
[369765346,1751721070808,-460.0,0.00021369,2]
[369765347,1751721070818,-460.0,0.00021369,2]
[369765348,1751721070827,-460.0,0.00021369,2]